fUSD/lending_fUSD_20250708
["ID","MTS","AMOUNT","RATE_DAILY","PERIOD"]
[370291507,1751938257198,-460.0,0.00030958,7]
[370291508,1751938257209,-460.0,0.00030958,7]
[370291509,1751938257218,-460.0,0.00030958,7]
[370291510,1751938257227,-460.0,0.00030958,7]
[370291511,1751938257237,-460.0,0.00030958,7]
[370291512,1751938257247,-460.0,0.00030958,7]
[370291513,1751938257256,-460.0,0.00030958,7]
[370291514,1751938257265,-460.0,0.00030958,7]
[370291515,1751938257275,-518.02,0.00030958,7]
[370291516,1751938257284,-460.0,0.00030958,7]
[370291517,1751938257294,-460.0,0.00030958,7]
[370291518,1751938257304,-460.0,0.00030958,7]
[370291519,1751938257313,-460.0,0.00030958,7]
[370291520,1751938257323,-460.0,0.00030958,7]
[370291521,1751938257333,-460.0,0.00030958,7]
[370291522,1751938257342,-460.0,0.00030958,7]
[370291523,1751938257352,-460.0,0.00030958,7]
[370291524,1751938257362,-460.0,0.00030958,7]
[370291525,1751938257372,-460.0,0.00030958,7]
[370291526,1751938257381,-622.67,0.00030958,7]
[370291527,1751938257390,-290.29,0.00030958,7]
[370291528,1751938257400,-584.3,0.00030958,7]
[370291529,1751938257409,-502.45,0.00030958,7]
[370291530,1751938257421,-460.0,0.00030958,7]
[370291531,1751938257430,-510.73,0.00030958,7]
[370291532,1751938257439,-460.0,0.00030958,7]
[370291533,1751938257449,-460.0,0.00030958,7]
[370291534,1751938257457,-707.02,0.00030958,7]
[370291535,1751938257467,-460.0,0.00030958,7]
[370291536,1751938257476,-460.0,0.00030958,7]
[370291537,1751938257485,-460.0,0.00030958,7]
[370291538,1751938257495,-501.63,0.00030958,7]
[370291539,1751938257505,-460.0,0.00030958,7]
[370291540,1751938257514,-460.0,0.00030958,7]
[370291541,1751938257523,-460.0,0.00030958,7]
[370291542,1751938257533,-538.24,0.00030958,7]
[370291543,1751938257543,-494.22,0.00030958,7]
[370291544,1751938257552,-460.0,0.00030958,7]
[370291545,1751938257562,-519.06,0.00030958,7]
[370291546,1751938257572,-460.0,0.00030958,7]
[370291547,1751938257581,-460.0,0.00030958,7]
[370291548,1751938257592,-460.0,0.00030958,7]
[370291549,1751938257602,-460.0,0.00030958,7]
[370291550,1751938257612,-460.0,0.00030958,7]
[370291551,1751938257622,-460.0,0.00030958,7]
[370291552,1751938257635,-460.0,0.00030958,7]
[370291553,1751938257646,-483.61,0.00030958,7]
[370291554,1751938257657,-1076.91,0.00030958,7]
[370291555,1751938257668,-460.0,0.00030958,7]
[370291556,1751938257678,-460.0,0.00030958,7]
[370291557,1751938257689,-669.06,0.00030958,7]
[370291558,1751938257699,-460.0,0.00030958,7]
[370291559,1751938257710,-536.22,0.00030958,7]
[370291560,1751938257720,-655.17,0.00030958,7]
[370291561,1751938257730,-460.0,0.00030958,7]
[370291562,1751938257741,-460.0,0.00030958,7]
[370291563,1751938257751,-519.92,0.00030958,7]
[370291564,1751938257760,-708.94,0.00030958,7]
[370291565,1751938257771,-534.54,0.00030958,7]
[370291566,1751938257782,-460.0,0.00030958,7]
[370291567,1751938257792,-460.0,0.00030958,7]
[370291568,1751938257801,-460.0,0.00030958,7]
[370291569,1751938257811,-460.0,0.00030958,7]
[370291570,1751938257820,-460.0,0.00030958,7]
[370291571,1751938257833,-553.02,0.00030958,7]
[370291572,1751938257843,-460.0,0.00030958,7]
[370291573,1751938257852,-460.0,0.00030958,7]
[370291574,1751938257864,-575.31,0.00030958,7]
[370291575,1751938257875,-894.25,0.00030958,7]
[370291576,1751938257885,-460.0,0.00030958,7]
[370291577,1751938257894,-558.92,0.00030958,7]
[370291578,1751938257905,-551.61,0.00030958,7]
[370291579,1751938257915,-806.95,0.00030958,7]
[370291580,1751938257924,-809.8,0.00030958,7]
[370291581,1751938257934,-460.0,0.00030958,7]
[370291582,1751938257943,-460.0,0.00030958,7]
[370291583,1751938257953,-1969.22,0.00030958,7]
[370291584,1751938257963,-460.0,0.00030958,7]
[370291585,1751938257972,-550.41,0.00030958,7]
[370291586,1751938257981,-460.0,0.00030958,7]
[370291587,1751938257992,-476.49,0.00030958,7]
[370291588,1751938258002,-460.0,0.00030958,7]
[370291589,1751938258012,-460.0,0.00030958,7]
[370291590,1751938258022,-460.0,0.00030958,7]
[370291591,1751938258032,-460.0,0.00030958,7]
[370291592,1751938258041,-460.0,0.00030958,7]
[370291593,1751938258051,-460.0,0.00030958,7]
[370291594,1751938258061,-460.0,0.00030958,7]
[370291595,1751938258070,-460.0,0.00030958,7]
[370291596,1751938258079,-1167.23,0.00030958,7]
[370291597,1751938258089,-478.79,0.00030958,7]
[370291598,1751938258098,-460.0,0.00030958,7]
[370291599,1751938258107,-402.36987978,0.00030958,7]
[370291600,1751938258119,-460.0,0.00030958,7]
[370291601,1751938258128,-560.91,0.00030958,7]
[370291602,1751938258137,-460.0,0.00030958,7]
[370291603,1751938258147,-514.0,0.00030958,7]
[370291604,1751938258156,-509.88,0.00030958,7]
[370291605,1751938258165,-460.0,0.00030958,7]
[370291606,1751938258174,-702.02,0.00030958,7]
[370291607,1751938258184,-1306.83,0.00030958,7]
[370291608,1751938258193,-460.0,0.00030958,7]
[370291609,1751938258203,-460.0,0.00030958,7]
[370291610,1751938258213,-460.0,0.00030958,7]
[370291611,1751938258223,-460.0,0.00030958,7]
[370291612,1751938258233,-460.0,0.00030958,7]
[370291613,1751938258244,-460.0,0.00030958,7]
[370291614,1751938258253,-460.0,0.00030958,7]
[370291615,1751938258263,-460.0,0.00030958,7]
[370291616,1751938258273,-460.0,0.00030958,7]
[370291617,1751938258282,-460.0,0.00030958,7]
[370291618,1751938258292,-460.0,0.00030958,7]
[370291619,1751938258301,-460.0,0.00030958,7]
[370291620,1751938258312,-300.0,0.00030958,2]
[370291621,1751938258322,-478.0,0.00030958,7]
[370291622,1751938258331,-460.0,0.00030958,7]
[370291623,1751938258341,-460.0,0.00030958,7]
[370291624,1751938258351,-584.62,0.00030958,7]
[370291625,1751938258361,-487.46,0.00030958,7]
[370291626,1751938258376,-460.0,0.00030958,7]
[370291627,1751938258386,-1213.7,0.00030958,7]
[370291628,1751938258395,-460.0,0.00030958,7]
[370291629,1751938258406,-460.0,0.00030958,7]
[370291630,1751938258416,-328.81,0.00030958,7]
[370291631,1751938258427,-460.0,0.00030958,7]
[370291632,1751938258440,-395.01,0.00030958,7]
[370291633,1751938258449,-814.77,0.00030958,7]
[370291634,1751938258458,-460.0,0.00030958,7]
[370291635,1751938258467,-1374.92,0.00030958,7]
[370291636,1751938258477,-460.0,0.00030958,7]
[370291637,1751938258486,-460.0,0.00030958,7]
[370291638,1751938258495,-460.0,0.00030958,7]
[370291639,1751938258505,-460.0,0.00030958,7]
[370291640,1751938258514,-369.69,0.00030958,7]
[370291641,1751938258525,-460.0,0.00030958,7]
[370291642,1751938258534,-460.0,0.00030958,7]
[370291643,1751938258543,-684.16,0.00030958,7]
[370291644,1751938258553,-460.0,0.00030958,7]
[370291645,1751938258562,-460.0,0.00030958,7]
[370291646,1751938258574,-460.0,0.00030958,7]
[370291647,1751938258584,-460.0,0.00030958,7]
[370291648,1751938258594,-460.0,0.00030958,7]
[370291649,1751938258604,-508.45,0.00030958,7]
[370291650,1751938258613,-2617.83,0.00030958,7]
[370291651,1751938258623,-551.23,0.00030958,7]
[370291652,1751938258633,-618.0,0.00030958,7]
[370291653,1751938258643,-1065.75,0.00030958,7]
[370291654,1751938258652,-825.08,0.00030958,7]
[370291655,1751938258662,-460.0,0.00030958,7]
[370291656,1751938258671,-506.24,0.00030958,7]
[370291657,1751938258681,-460.0,0.00030958,7]
[370291658,1751938258691,-460.0,0.00030958,7]
[370291659,1751938258700,-460.0,0.00030958,7]
[370291660,1751938258711,-644.34,0.00030958,7]
[370291661,1751938258722,-460.0,0.00030958,7]
[370291662,1751938258732,-460.0,0.00030958,7]
[370291663,1751938258741,-460.0,0.00030958,7]
[370291664,1751938258751,-1133.44,0.00030958,7]
[370291665,1751938258762,-499.81,0.00030958,7]
[370291666,1751938258772,-537.03859293,0.00030958,7]
[370291667,1751938258782,-245.50877191,0.00030958,7]
[370291668,1751938258793,-611.49,0.00030958,7]
[370291669,1751938258802,-486.05,0.00030958,7]
[370291670,1751938258812,-468.87,0.00030958,7]
[370291671,1751938258821,-460.0,0.00030958,7]
[370291672,1751938258834,-460.0,0.00030958,7]
[370291673,1751938258843,-460.0,0.00030958,7]
[370291674,1751938258854,-699.01,0.00030958,7]
[370291675,1751938258865,-174.70302681,0.00030958,7]
[370291676,1751938258875,-527.87,0.00030958,7]
[370291677,1751938258885,-460.0,0.00030958,7]
[370291678,1751938258895,-460.0,0.00030958,7]
[370291679,1751938258905,-970.68,0.00030958,7]
[370291680,1751938258917,-460.0,0.00030958,7]
[370291681,1751938258927,-460.0,0.00030958,7]
[370291682,1751938258937,-460.0,0.00030958,7]
[370291683,1751938258946,-6177.27,0.00030958,7]
[370291684,1751938258957,-500.0,0.00030981,7]
[370291685,1751938258966,-1046.01,0.00030981,7]
[370291686,1751938258976,-500.0,0.00030981,7]
[370291687,1751938258985,-2000.0,0.00031,2]
[370291688,1751938258995,-1431.61511472,0.00031003,24]
[370291689,1751938259004,-210.31172994,0.00031067,2]
[370291690,1751938259015,-1100.59741854,0.00031229,7]
[370291691,1751938259026,-460.0,0.00031231,7]
[370291692,1751938259035,-460.0,0.00031231,7]
[370291693,1751938259046,-460.0,0.00031231,7]
[370291694,1751938259056,-460.0,0.00031231,7]
[370291695,1751938259066,-690.31,0.00031231,7]
[370291696,1751938259077,-346.61359642,0.00031231,7]
[370291697,1751938259087,-460.0,0.00031231,7]
[370291698,1751938259098,-529.84,0.00031231,7]
[370291699,1751938259108,-500.0,0.00031231,7]
[370291700,1751938259117,-500.0,0.00031231,7]
[370291701,1751938259128,-500.0,0.00031231,7]
[370291702,1751938259138,-500.0,0.00031231,7]
[370291703,1751938259147,-500.0,0.00031231,7]
[370291704,1751938259158,-331.94240244,0.00031231,7]
[370291705,1751938259168,-460.0,0.00031231,7]
[370291706,1751938259178,-460.0,0.00031231,7]
[370291707,1751938259190,-460.0,0.00031231,7]
[370291708,1751938259200,-460.0,0.00031231,7]
[370291709,1751938259210,-500.0,0.00031231,7]
[370291710,1751938259348,-500.0,0.00031231,7]
[370291711,1751938259358,-500.0,0.00031231,7]
[370291712,1751938259366,-1046.01,0.00031231,7]
[370291713,1751938259375,-1046.01,0.00031231,7]
[370291714,1751938259385,-1046.01,0.00031231,7]
[370291715,1751938259394,-1046.01,0.00031231,7]
[370291716,1751938259403,-460.0,0.00031231,7]
[370291717,1751938259413,-1046.01,0.00031231,7]
[370291718,1751938259423,-1046.01,0.00031231,7]
[370291719,1751938259432,-1046.01,0.00031231,7]
[370291720,1751938259441,-1046.01,0.00031231,7]
[370291721,1751938259450,-607.77,0.00031231,7]
[370291722,1751938259460,-1089.79,0.00031231,7]
[370291723,1751938259469,-460.0,0.00031231,7]
[370291724,1751938259478,-509.38,0.00031231,7]
[370291725,1751938259487,-1859.33,0.00031231,7]
[370291726,1751938259496,-460.0,0.00031231,7]
[370291727,1751938259506,-460.0,0.00031231,7]
[370291728,1751938259515,-654.62,0.00031231,7]
[370291729,1751938259526,-460.0,0.00031231,7]
[370291730,1751938259535,-1024.6,0.00031231,7]
[370291731,1751938259544,-718.1,0.00031231,7]
[370291732,1751938259554,-2116.36,0.00031231,7]
[370291733,1751938259564,-360.29,0.00031231,7]
[370291734,1751938259574,-460.0,0.00031231,7]
[370291735,1751938259583,-480.94,0.00031231,7]
[370291736,1751938259592,-460.0,0.00031231,7]
[370291737,1751938259602,-460.0,0.00031231,7]
[370291738,1751938259611,-9633.99,0.00031231,7]
[370291739,1751938259620,-217.80881405,0.00031231,7]
[370291740,1751938259630,-1627.29,0.00031231,7]
[370291741,1751938259639,-1052.66,0.00031231,7]
[370291742,1751938259648,-906.26,0.00031231,7]
[370291743,1751938259658,-1424.17,0.00031231,7]
[370291744,1751938259668,-629.94,0.00031231,7]
[370291745,1751938259677,-1161.62,0.00031231,7]
[370291746,1751938259687,-515.93,0.00031231,7]
[370291747,1751938259696,-1422.66,0.00031231,7]
[370291748,1751938259706,-180.2142048,0.00031231,7]
[370291749,1751938259716,-460.0,0.00031231,7]
[370291750,1751938259727,-1483.98,0.00031231,7]
[370291751,1751938259736,-460.0,0.00031231,7]
[370291752,1751938259747,-460.0,0.00031231,7]
[370291753,1751938259757,-460.0,0.00031231,7]
[370291754,1751938259767,-460.0,0.00031231,7]
[370291755,1751938259777,-460.0,0.00031231,7]
[370291756,1751938259787,-278.49,0.00031231,7]
[370291757,1751938259797,-460.0,0.00031231,7]
[370291758,1751938259806,-460.0,0.00031231,7]
[370291759,1751938259816,-702.72,0.00031231,7]
[370291760,1751938259828,-549.19,0.00031231,7]
[370291761,1751938259837,-460.0,0.00031231,7]
[370291762,1751938259847,-564.53,0.00031231,7]
[370291763,1751938259857,-460.0,0.00031231,7]
[370291764,1751938259867,-460.0,0.00031231,7]
[370291765,1751938259877,-460.0,0.00031231,7]
[370291766,1751938259888,-1190.83,0.00031231,7]
[370291767,1751938259898,-892.31,0.00031231,7]
[370291768,1751938259908,-460.0,0.00031231,7]
[370291769,1751938259918,-844.16,0.00031231,7]
[370291770,1751938259928,-460.0,0.00031231,7]
[370291771,1751938259937,-460.0,0.00031231,7]
[370291772,1751938259946,-460.0,0.00031231,7]
[370291773,1751938259955,-460.0,0.00031231,7]
[370291774,1751938259965,-460.0,0.00031231,7]
[370291775,1751938259974,-2225.28,0.00031231,7]
[370291776,1751938259984,-151.0,0.00031232,7]
[370291777,1751938259994,-151.0,0.00031232,7]
[370291778,1751938260003,-151.0,0.00031232,7]
[370291779,1751938260012,-151.0,0.00031232,7]
[370291780,1751938260022,-151.0,0.00031232,7]
[370291781,1751938260032,-460.0,0.00031232,7]
[370291782,1751938260042,-460.0,0.00031232,7]
[370291783,1751938260052,-460.0,0.00031232,7]
[370291784,1751938260062,-460.0,0.00031232,7]
[370291785,1751938260072,-460.0,0.00031232,7]
[370291786,1751938260081,-460.0,0.00031232,7]
[370291787,1751938260090,-460.0,0.00031232,7]
[370291788,1751938260102,-598.43,0.00031232,7]
[370291789,1751938260111,-385.93,0.00031232,7]
[370291790,1751938260121,-558.4,0.00031232,7]
[370291791,1751938260131,-270.97,0.00031232,7]
[370291792,1751938260140,-465.45,0.00031232,7]
[370291793,1751938260150,-543.88,0.00031232,7]
[370291794,1751938260159,-460.0,0.00031232,7]
[370291795,1751938260168,-460.0,0.00031232,7]
[370291796,1751938260179,-498.76,0.00031232,7]
[370291797,1751938260188,-460.0,0.00031232,7]
[370291798,1751938260198,-460.0,0.00031232,7]
[370291799,1751938260208,-460.0,0.00031232,7]
[370291800,1751938260217,-460.0,0.00031232,7]
[370291801,1751938260228,-301.55641535,0.00031232,7]
[370291802,1751938260238,-460.0,0.00031232,7]
[370291803,1751938260248,-460.0,0.00031232,7]
[370291804,1751938260258,-460.0,0.00031232,7]
[370291805,1751938260268,-527.94,0.00031232,7]
[370291806,1751938260278,-460.0,0.00031232,7]
[370291807,1751938260288,-460.0,0.00031232,7]
[370291808,1751938260297,-202.81579733,0.00031232,7]
[370291809,1751938260307,-448.75293322,0.00031232,7]
[370291810,1751938260316,-460.0,0.00031232,7]
[370291811,1751938260327,-460.0,0.00031232,7]
[370291812,1751938260337,-619.62,0.00031232,7]
[370291813,1751938260349,-460.0,0.00031232,7]
[370291814,1751938260359,-572.72,0.00031232,7]
[370291815,1751938260369,-672.37,0.00031232,7]
[370291816,1751938260378,-460.0,0.00031232,7]
[370291817,1751938260387,-460.0,0.00031232,7]
[370291818,1751938260401,-550.0,0.00031232,7]
[370291819,1751938260414,-578.84,0.00031232,7]
[370291820,1751938260424,-460.0,0.00031232,7]
[370291821,1751938260433,-837.22,0.00031232,7]
[370291822,1751938260442,-582.79,0.00031232,7]
[370291823,1751938260451,-642.8,0.00031232,7]
[370291824,1751938260463,-510.32,0.00031232,7]
[370291825,1751938260472,-460.0,0.00031232,7]
[370291826,1751938260483,-443.61,0.00031232,7]
[370291827,1751938260492,-601.62,0.00031232,7]
[370291828,1751938260502,-460.0,0.00031232,7]
[370291829,1751938260513,-184.594013,0.00031232,7]
[370291830,1751938260523,-152.876352,0.00031232,7]
[370291831,1751938260532,-470.11,0.00031232,7]
[370291832,1751938260541,-460.0,0.00031232,7]
[370291833,1751938260551,-186.865988,0.00031232,7]
[370291834,1751938260560,-762.48,0.00031232,7]
[370291835,1751938260572,-248.09,0.00031232,7]
[370291836,1751938260585,-460.0,0.00031232,7]
[370291837,1751938260594,-1310.8,0.00031232,7]
[370291838,1751938260604,-460.0,0.00031232,7]
[370291839,1751938260616,-460.0,0.00031232,7]
[370291840,1751938260626,-460.0,0.00031232,7]
[370291841,1751938260637,-460.0,0.00031232,7]
[370291842,1751938260648,-460.0,0.00031232,7]
[370291843,1751938260657,-208.94,0.00031232,7]
[370291844,1751938260668,-379.55779392,0.00031232,7]
[370291845,1751938260678,-460.0,0.00031232,7]
[370291846,1751938260688,-518.02,0.00031232,7]
[370291847,1751938260698,-460.0,0.00031232,7]
[370291848,1751938260709,-460.0,0.00031232,7]
[370291849,1751938260720,-174.0,0.00031232,7]
[370291850,1751938260730,-166.0,0.00031232,7]
[370291851,1751938260739,-460.0,0.00031232,7]
[370291852,1751938260749,-460.0,0.00031232,7]
[370291853,1751938260759,-460.0,0.00031232,7]
[370291854,1751938260768,-460.0,0.00031232,7]
[370291855,1751938260778,-460.0,0.00031232,7]
[370291856,1751938260788,-460.0,0.00031232,7]
[370291857,1751938260797,-622.67,0.00031232,7]
[370291858,1751938260806,-584.3,0.00031232,7]
[370291859,1751938260815,-502.45,0.00031232,7]
[370291860,1751938260828,-460.0,0.00031232,7]
[370291861,1751938260839,-510.73,0.00031232,7]
[370291862,1751938260848,-460.0,0.00031232,7]
[370291863,1751938260857,-176.18,0.00031232,7]
[370291864,1751938260868,-707.02,0.00031232,7]
[370291865,1751938260878,-460.0,0.00031232,7]
[370291866,1751938260888,-460.0,0.00031232,7]
[370291867,1751938260899,-460.0,0.00031232,7]
[370291868,1751938260910,-501.63,0.00031232,7]
[370291869,1751938260920,-460.0,0.00031232,7]
[370291870,1751938260929,-460.0,0.00031232,7]
[370291871,1751938260939,-471.83612709,0.00031232,7]
[370291872,1751938260948,-538.24,0.00031232,7]
[370291873,1751938260958,-494.22,0.00031232,7]
[370291874,1751938260968,-460.0,0.00031232,7]
[370291875,1751938260978,-460.0,0.00031232,7]
[370291876,1751938260988,-460.0,0.00031232,7]
[370291877,1751938260998,-460.0,0.00031232,7]
[370291878,1751938261007,-460.0,0.00031232,7]
[370291879,1751938261017,-460.0,0.00031232,7]
[370291880,1751938261028,-460.0,0.00031232,7]
[370291881,1751938261038,-460.0,0.00031232,7]
[370291882,1751938261047,-483.61,0.00031232,7]
[370291883,1751938261057,-1076.91,0.00031232,7]
[370291884,1751938261066,-460.0,0.00031232,7]
[370291885,1751938261076,-460.0,0.00031232,7]
[370291886,1751938261085,-669.06,0.00031232,7]
[370291887,1751938261094,-566.36,0.00031232,7]
[370291888,1751938261104,-536.22,0.00031232,7]
[370291889,1751938261113,-655.17,0.00031232,7]
[370291890,1751938261122,-460.0,0.00031232,7]
[370291891,1751938261131,-330.62,0.00031232,7]
[370291892,1751938261141,-519.92,0.00031232,7]
[370291893,1751938261150,-708.94,0.00031232,7]
[370291894,1751938261159,-534.54,0.00031232,7]
[370291895,1751938261169,-460.0,0.00031232,7]
[370291896,1751938261179,-460.0,0.00031232,7]
[370291897,1751938261188,-460.0,0.00031232,7]
[370291898,1751938261197,-460.0,0.00031232,7]
[370291899,1751938261206,-460.0,0.00031232,7]
[370291900,1751938261216,-553.02,0.00031232,7]
[370291901,1751938261226,-460.0,0.00031232,7]
[370291902,1751938261235,-460.0,0.00031232,7]
[370291903,1751938261244,-575.31,0.00031232,7]
[370291904,1751938261254,-894.25,0.00031232,7]
[370291905,1751938261263,-460.0,0.00031232,7]
[370291906,1751938261273,-551.61,0.00031232,7]
[370291907,1751938261283,-806.95,0.00031232,7]
[370291908,1751938261293,-809.8,0.00031232,7]
[370291909,1751938261303,-460.0,0.00031232,7]
[370291910,1751938261312,-460.0,0.00031232,7]
[370291911,1751938261322,-1969.22,0.00031232,7]
[370291912,1751938261331,-460.0,0.00031232,7]
[370291913,1751938261340,-550.41,0.00031232,7]
[370291914,1751938261349,-460.0,0.00031232,7]
[370291915,1751938261359,-476.49,0.00031232,7]
[370291916,1751938261368,-460.0,0.00031232,7]
[370291917,1751938261377,-460.0,0.00031232,7]
[370291918,1751938261506,-460.0,0.00031232,7]
[370291919,1751938261515,-460.0,0.00031232,7]
[370291920,1751938261525,-460.0,0.00031232,7]
[370291921,1751938261535,-574.16,0.00031232,7]
[370291922,1751938261544,-460.0,0.00031232,7]
[370291923,1751938261553,-460.0,0.00031232,7]
[370291924,1751938261565,-1167.23,0.00031232,7]
[370291925,1751938261574,-478.79,0.00031232,7]
[370291926,1751938261584,-288.40701217,0.00031232,7]
[370291927,1751938261592,-460.0,0.00031232,7]
[370291928,1751938261602,-560.91,0.00031232,7]
[370291929,1751938261611,-460.0,0.00031232,7]
[370291930,1751938261620,-514.0,0.00031232,7]
[370291931,1751938261629,-509.88,0.00031232,7]
[370291932,1751938261638,-460.0,0.00031232,7]
[370291933,1751938261648,-702.02,0.00031232,7]
[370291934,1751938261658,-1306.83,0.00031232,7]
[370291935,1751938261668,-532.14601953,0.00031232,7]
[370291936,1751938261677,-460.0,0.00031232,7]
[370291937,1751938261686,-460.0,0.00031232,7]
[370291938,1751938261696,-460.0,0.00031232,7]
[370291939,1751938261705,-460.0,0.00031232,7]
[370291940,1751938261715,-460.0,0.00031232,7]
[370291941,1751938261725,-460.0,0.00031232,7]
[370291942,1751938261735,-460.0,0.00031232,7]
[370291943,1751938261745,-460.0,0.00031232,7]
[370291944,1751938261754,-460.0,0.00031232,7]
[370291945,1751938261764,-460.0,0.00031232,7]
[370291946,1751938261774,-460.0,0.00031232,7]
[370291947,1751938261783,-300.0,0.00031232,2]
[370291948,1751938261793,-478.0,0.00031232,7]
[370291949,1751938261803,-460.0,0.00031232,7]
[370291950,1751938261812,-460.0,0.00031232,7]
[370291951,1751938261822,-584.62,0.00031232,7]
[370291952,1751938261835,-487.46,0.00031232,7]
[370291953,1751938261845,-460.0,0.00031232,7]
[370291954,1751938261855,-1213.7,0.00031232,7]
[370291955,1751938261866,-460.0,0.00031232,7]
[370291956,1751938261875,-460.0,0.00031232,7]
[370291957,1751938261884,-460.0,0.00031232,7]
[370291958,1751938261893,-814.77,0.00031232,7]
[370291959,1751938261903,-1374.92,0.00031232,7]
[370291960,1751938261912,-460.0,0.00031232,7]
[370291961,1751938261922,-460.0,0.00031232,7]
[370291962,1751938261932,-460.0,0.00031232,7]
[370291963,1751938261941,-156.0589469,0.00031232,7]
[370291964,1751938261950,-460.0,0.00031232,7]
[370291965,1751938261959,-684.16,0.00031232,7]
[370291966,1751938261969,-460.0,0.00031232,7]
[370291967,1751938261978,-460.0,0.00031232,7]
[370291968,1751938261988,-460.0,0.00031232,7]
[370291969,1751938261997,-460.0,0.00031232,7]
[370291970,1751938262007,-460.0,0.00031232,7]
[370291971,1751938262016,-460.0,0.00031232,7]
[370291972,1751938262026,-508.45,0.00031232,7]
[370291973,1751938262036,-2617.83,0.00031232,7]
[370291974,1751938262046,-618.0,0.00031232,7]
[370291975,1751938262055,-1065.75,0.00031232,7]
[370291976,1751938262064,-825.08,0.00031232,7]
[370291977,1751938262074,-551.23,0.00031232,7]
[370291978,1751938262083,-460.0,0.00031232,7]
[370291979,1751938262093,-506.24,0.00031232,7]
[370291980,1751938262102,-460.0,0.00031232,7]
[370291981,1751938262111,-460.0,0.00031232,7]
[370291982,1751938262120,-460.0,0.00031232,7]
[370291983,1751938262129,-644.34,0.00031232,7]
[370291984,1751938262138,-460.0,0.00031232,7]
[370291985,1751938262148,-187.06382596,0.00031232,7]
[370291986,1751938262157,-460.0,0.00031232,7]
[370291987,1751938262167,-1133.44,0.00031232,7]
[370291988,1751938262176,-499.81,0.00031232,7]
[370291989,1751938262185,-611.49,0.00031232,7]
[370291990,1751938262195,-486.05,0.00031232,7]
[370291991,1751938262204,-468.87,0.00031232,7]
[370291992,1751938262214,-460.0,0.00031232,7]
[370291993,1751938262224,-460.0,0.00031232,7]
[370291994,1751938262233,-460.0,0.00031232,7]
[370291995,1751938262242,-699.01,0.00031232,7]
[370291996,1751938262252,-527.87,0.00031232,7]
[370291997,1751938262261,-460.0,0.00031232,7]
[370291998,1751938262270,-460.0,0.00031232,7]
[370291999,1751938262280,-970.68,0.00031232,7]
[370292000,1751938262290,-460.0,0.00031232,7]
[370292001,1751938262299,-460.0,0.00031232,7]
[370292002,1751938262309,-460.0,0.00031232,7]
[370292003,1751938262318,-6177.27,0.00031232,7]
[370292004,1751938262327,-300.0,0.00031454,2]
[370292005,1751938262337,-1000.0,0.00031454,2]
[370292006,1751938262346,-4169.08984202,0.00031454,2]